fUSD/lending_fUSD_20250611
["ID","MTS","AMOUNT","RATE_DAILY","PERIOD"]
[365383706,1749637840762,-1000.0,0.00019634,2]
[365383707,1749637840770,-151.620939,0.00019685,2]
[365383708,1749637840779,-247.833549,0.00019685,2]
[365383709,1749637840788,-353.448509,0.00019685,2]
[365383710,1749637840797,-153.135611,0.00019685,2]
[365383711,1749637840807,-150.48,0.0001969,2]
[365383712,1749637840816,-223.59295662,0.00019693,2]
[365383713,1749637840825,-5946.18,0.000197,2]
[365383714,1749637840834,-62390.0,0.000197,2]
[365383715,1749637840842,-500.0,0.00019726,2]
[365383716,1749637840852,-223.59295662,0.00019762,2]
[365383717,1749637840862,-150.48,0.0001979,2]
[365383718,1749637840870,-20173.17198425,0.000198,4]
[365383719,1749637840879,-233.685969,0.00019821,2]
[365383720,1749637840888,-233.685969,0.00019821,2]
[365383721,1749637840897,-1000.0,0.00019826,2]
[365383722,1749637840907,-223.59295662,0.00019831,2]
[365383723,1749637840916,-411.479,0.00019835,2]
[365383724,1749637840925,-500.0,0.0001984,2]
[365383725,1749637840935,-3464.3202,0.00019886,2]
[365383726,1749637840944,-487.5066,0.00019886,2]
[365383727,1749637840953,-197.40331613,0.00019899,2]
[365383728,1749637840962,-150.0,0.00019899,2]
[365383729,1749637840972,-150.0,0.00019899,2]
[365383730,1749637840981,-500.0,0.00019899,2]
[365383731,1749637840990,-151.0,0.000199,2]
[365383732,1749637840999,-151.996132,0.000199,2]
[365383733,1749637841008,-151.0,0.000199,2]
[365383734,1749637841018,-353.448509,0.000199,2]
[365383735,1749637841027,-5000.0,0.000199,3]
[365383736,1749637841037,-1943.72638604,0.000199,2]
[365383737,1749637841046,-2922.17040615,0.000199,2]
[365383738,1749637841055,-1497.7949809,0.000199,2]
[365383739,1749637841064,-154.52056865,0.000199,2]
[365383740,1749637841074,-13406.9574026,0.000199,2]
[365383741,1749637841084,-223.59295662,0.000199,2]
[365383742,1749637841094,-1151.38761643,0.000199,2]
[365383743,1749637841104,-200.0,0.00019926,2]
[365383744,1749637841113,-500.0,0.00019926,2]
[365383745,1749637841122,-151.0,0.00019945,2]
[365383746,1749637841131,-233.685969,0.00019945,2]
[365383747,1749637841141,-233.685969,0.00019945,2]
[365383748,1749637841151,-500.0,0.00019954,2]
[365383749,1749637841161,-353.448509,0.0001997,2]
[365383750,1749637841170,-150.48,0.0001997,2]
[365383751,1749637841180,-173.16307485,0.00019973,4]
[365383752,1749637841189,-168.49579686,0.00019973,4]
[365383753,1749637841198,-500.0,0.00019973,2]
[365383754,1749637841207,-500.0,0.00019973,2]
[365383755,1749637841216,-500.0,0.00019973,2]
[365383756,1749637841226,-500.0,0.00019973,2]
[365383757,1749637841235,-500.0,0.00019973,2]
[365383758,1749637841245,-500.0,0.00019973,2]
[365383759,1749637841255,-500.05755497,0.00019973,2]
[365383760,1749637841264,-500.0,0.00019973,2]
[365383761,1749637841274,-500.0,0.00019973,2]
[365383762,1749637841284,-500.0,0.00019973,2]
[365383763,1749637841293,-500.0,0.00019973,2]
[365383764,1749637841307,-500.0,0.00019973,2]
[365383765,1749637841316,-500.0,0.00019973,2]
[365383766,1749637841325,-500.0,0.00019973,2]
[365383767,1749637841335,-500.0,0.00019973,2]
[365383768,1749637841346,-500.0,0.00019973,2]
[365383769,1749637841355,-500.0,0.00019973,2]
[365383770,1749637841364,-500.0,0.00019973,2]
[365383771,1749637841374,-500.0,0.00019973,2]
[365383772,1749637841384,-500.0,0.00019973,2]
[365383773,1749637841396,-162.56620902,0.00019973,2]
[365383774,1749637841405,-500.0,0.00019973,2]
[365383775,1749637841414,-150.48,0.00019976,2]
[365383776,1749637841424,-150.48,0.00019976,2]
[365383777,1749637841434,-1575.10633368,0.00019976,2]
[365383778,1749637841444,-60003.09522916,0.0001998,2]
[365383779,1749637841454,-182206.37740437,0.0001998,2]
[365383780,1749637841463,-150.48,0.0001998,2]
[365383781,1749637841473,-500.0,0.00019981,2]
[365383782,1749637841482,-150.48,0.00019985,2]
[365383783,1749637841491,-151.0,0.00019986,2]
[365383784,1749637841501,-353.448509,0.00019986,2]
[365383785,1749637841510,-353.448509,0.00019986,2]
[365383786,1749637841519,-353.448509,0.00019986,2]
[365383787,1749637841529,-233.685969,0.00019986,2]
[365383788,1749637841538,-233.685969,0.00019986,2]
[365383789,1749637841548,-233.685969,0.00019986,2]
[365383790,1749637841557,-233.685969,0.00019986,2]
[365383791,1749637841566,-3491.8654859,0.00019986,2]
[365383792,1749637841575,-2983.2036177,0.00019986,2]
[365383793,1749637841584,-2474.5417495,0.00019986,2]
[365383794,1749637841593,-1965.8798812,0.00019986,2]
[365383795,1749637841602,-1457.218013,0.00019986,2]
[365383796,1749637841611,-28803.2846065,0.00019986,2]
[365383797,1749637841621,-24607.4951014,0.00019986,2]
[365383798,1749637841630,-20411.7055964,0.00019986,2]
[365383799,1749637841639,-16215.9160913,0.00019986,2]
[365383800,1749637841650,-12020.1265863,0.00019986,2]
[365383801,1749637841815,-1164.2094819,0.00019986,2]
[365383802,1749637841825,-962.9710559,0.00019986,2]
[365383803,1749637841834,-761.7326298,0.00019986,2]
[365383804,1749637841844,-560.4942038,0.00019986,2]
[365383805,1749637841852,-359.2557777,0.00019986,2]
[365383806,1749637841862,-1159.0,0.00019989,2]
[365383807,1749637841871,-7065.0,0.00019989,2]
[365383808,1749637841881,-4086.0,0.00019989,2]
[365383809,1749637841890,-155.0,0.00019989,2]
[365383810,1749637841900,-150.48,0.0001999,2]
[365383811,1749637841910,-150.48,0.0001999,2]
[365383812,1749637841919,-150.48,0.0001999,2]
[365383813,1749637841928,-150.48,0.0001999,2]
[365383814,1749637841938,-150.48,0.0001999,2]
[365383815,1749637841948,-150.48,0.0001999,2]
[365383816,1749637841958,-150.48,0.0001999,2]
[365383817,1749637841967,-150.48,0.0001999,2]
[365383818,1749637841977,-150.48,0.0001999,2]
[365383819,1749637841986,-150.48,0.0001999,2]
[365383820,1749637841995,-150.48,0.0001999,2]
[365383821,1749637842005,-150.48,0.0001999,2]
[365383822,1749637842014,-353.448509,0.0001999,2]
[365383823,1749637842024,-353.448509,0.0001999,2]
[365383824,1749637842033,-83171.42583828,0.0001999,2]
[365383825,1749637842043,-150.48,0.0001999,2]
[365383826,1749637842053,-150.48,0.0001999,2]
[365383827,1749637842062,-150.48,0.0001999,2]
[365383828,1749637842073,-150.48,0.0001999,2]
[365383829,1749637842082,-150.48,0.0001999,2]
[365383830,1749637842092,-150.48,0.0001999,2]
[365383831,1749637842102,-150.48,0.0001999,2]
[365383832,1749637842113,-150.48,0.0001999,2]
[365383833,1749637842122,-150.48,0.0001999,2]
[365383834,1749637842132,-150.48,0.0001999,2]
[365383835,1749637842142,-150.48,0.0001999,2]
[365383836,1749637842152,-150.48,0.0001999,2]
[365383837,1749637842162,-150.48,0.0001999,2]
[365383838,1749637842172,-150.48,0.0001999,2]
[365383839,1749637842182,-5000.0,0.0001999,5]
[365383840,1749637842192,-150.48,0.0001999,2]
[365383841,1749637842201,-150.48,0.0001999,2]
[365383842,1749637842211,-150.48,0.0001999,2]
[365383843,1749637842221,-150.48,0.0001999,2]
[365383844,1749637842230,-150.48,0.0001999,2]
[365383845,1749637842240,-150.48,0.0001999,2]
[365383846,1749637842249,-150.48,0.0001999,2]
[365383847,1749637842259,-150.48,0.0001999,2]
[365383848,1749637842269,-150.48,0.0001999,2]
[365383849,1749637842278,-150.48,0.0001999,2]
[365383850,1749637842288,-150.48,0.0001999,2]
[365383851,1749637842299,-150.48,0.0001999,2]
[365383852,1749637842310,-150.48,0.0001999,2]
[365383853,1749637842320,-150.48,0.0001999,2]
[365383854,1749637842329,-150.48,0.0001999,2]
[365383855,1749637842339,-150.48,0.0001999,2]
[365383856,1749637842348,-150.48,0.0001999,2]
[365383857,1749637842358,-150.48,0.0001999,2]
[365383858,1749637842367,-150.48,0.0001999,2]
[365383859,1749637842377,-150.48,0.0001999,2]
[365383860,1749637842387,-150.48,0.0001999,2]
[365383861,1749637842396,-150.48,0.0001999,2]
[365383862,1749637842406,-150.48,0.0001999,2]
[365383863,1749637842415,-150.48,0.0001999,2]
[365383864,1749637842425,-150.48,0.0001999,2]
[365383865,1749637842434,-150.48,0.0001999,2]
[365383866,1749637842443,-150.48,0.0001999,2]
[365383867,1749637842452,-150.48,0.0001999,2]
[365383868,1749637842461,-150.48,0.0001999,2]
[365383869,1749637842471,-150.48,0.0001999,2]
[365383870,1749637842480,-150.48,0.0001999,2]
[365383871,1749637842489,-150.48,0.0001999,2]
[365383872,1749637842499,-150.48,0.0001999,2]
[365383873,1749637842508,-150.48,0.0001999,2]
[365383874,1749637842517,-150.48,0.0001999,2]
[365383875,1749637842526,-150.48,0.0001999,2]
[365383876,1749637842535,-150.48,0.0001999,2]
[365383878,1749637842545,-150.48,0.0001999,2]
[365383879,1749637842555,-150.48,0.0001999,2]
[365383880,1749637842564,-150.48,0.0001999,2]
[365383881,1749637842573,-150.48,0.0001999,2]
[365383882,1749637842583,-150.48,0.0001999,2]
[365383883,1749637842592,-150.48,0.0001999,2]
[365383884,1749637842601,-1575.10633368,0.0001999,2]
[365383885,1749637842611,-1575.10633368,0.0001999,2]
[365383886,1749637842620,-233.685969,0.00019995,2]
[365383887,1749637842629,-233.685969,0.00019995,2]
[365383888,1749637842639,-4000.5273541,0.00019995,2]
[365383889,1749637842649,-32999.0741115,0.00019995,2]
[365383890,1749637842658,-1365.447908,0.00019995,2]
[365383891,1749637842668,-2660.77335254,0.00019996,2]
[365383892,1749637842677,-300.0,0.00019999,2]
[365383893,1749637842687,-500.0,0.00019999,2]
[365383894,1749637842696,-150.0,0.00019999,2]
[365383895,1749637842706,-790786.57376499,0.0002,3]
[365383896,1749637842715,-18659.03368302,0.0002,3]
[365383897,1749637842724,-4000.0,0.0002,4]
[365383898,1749637842733,-4000.0,0.0002,4]
[365383899,1749637842742,-4000.0,0.0002,4]
[365383900,1749637842751,-4000.0,0.0002,4]
[365383901,1749637842760,-4000.0,0.0002,4]
[365383902,1749637842770,-4000.0,0.0002,4]
[365383903,1749637842780,-3920383.42681938,0.0002,2]
[365383904,1749637842789,-1294350.74808548,0.0002,2]
[365383905,1749637843187,-497.03,0.00017127,2]
[365383906,1749637843197,-162.921602,0.0001961,2]
[365383907,1749637843207,-11304.15754125,0.0002,2]
[365383908,1749637843218,-565265.25782611,0.0002,2]
[365383909,1749637843228,-28769.01899778,0.0002,2]
[365383910,1749637843257,-1439.01434896,0.0002,2]
[365383911,1749637843268,-991.76442867,0.0002,2]
[365383912,1749637843279,-45695.89000887,0.0002,2]
[365383920,1749637846702,-0.15292214,0.00017137,2]
[365383921,1749637846718,-501.92707786,0.00017137,2]
[365383922,1749637846910,-155.27536798,0.00018035,2]
[365383923,1749637846920,-200.0,0.00019055,2]
[365383924,1749637846929,-162.921602,0.000199,2]
[365383925,1749637846940,-5000.0,0.0001999,12]
[365383926,1749637846950,-16506.61880444,0.0002,2]
[365383927,1749637846960,-25015.22703274,0.0002,20]
[365383928,1749637846970,-481.20609214,0.0002,10]
[365383929,1749637846980,-387.0,0.0002,2]
[365383930,1749637846990,-4068.72222636,0.0002,2]
[365383931,1749637846999,-56076.0530996,0.0002,2]
[365383932,1749637889502,-389.68239305,0.00017136,2]
[365383933,1749637894364,508.48,0.00017137,2]
[365383934,1749637899510,302.56,0.00017136,2]
[365383935,1749637900366,497.48,0.00017137,2]
[365383936,1749637917351,500.0,0.00016164,2]
[365383937,1749637922967,-504.25,0.00017137,2]
[365383938,1749637923001,-493.62,0.00017137,2]
[365383939,1749637923035,-305.57,0.00017137,2]
[365383940,1749637923067,-491.9,0.00017137,2]
[365383941,1749637923097,-506.36,0.00017137,2]
[365383942,1749637925679,-500.54,0.00017137,2]
[365383943,1749637925706,-302.09,0.00017137,2]
[365383944,1749637925734,-493.31,0.00017137,2]
[365383945,1749637925763,-509.13,0.00017137,2]
[365383946,1749637925792,-496.58,0.00017137,2]
[365383947,1749637925819,-0.05,0.00017137,2]
[365383948,1749637931843,103.49760695,0.0001711,2]
[365383949,1749637931987,-99.50239305,0.0001711,2]
[365383950,1749637932016,-304.64,0.00017137,2]
[365383951,1749637932045,-504.69,0.00017137,2]
[365383952,1749637932073,-508.67,0.00017137,2]
[365383953,1749637932102,-494.67,0.00017137,2]
[365383954,1749637932130,-302.21,0.00017137,2]
[365383955,1749637933912,87.31760695,0.00017137,2]
[365383956,1749637937228,-417.22239305,0.00017137,2]
[365383957,1749637939252,490.41,0.00017137,2]
[365383958,1749637944507,300.94,0.00017137,2]
[365383959,1749637944857,502.29,0.00017137,2]
[365383960,1749637971887,-493.22,0.00017569,2]
[365383961,1749637971915,-56.78,0.00017569,2]
[365383962,1749637973664,-434.21,0.00017569,2]
[365383963,1749637973698,-115.79,0.00017569,2]
[365383964,1749637977829,-167.68482798,0.00017469,2]
[365383965,1749637977858,-188.25,0.00017569,2]
[365383966,1749637977888,-194.06517202,0.00017569,2]
[365383967,1749637980588,-298.86482798,0.00017569,2]
[365383968,1749637980616,-251.13517202,0.00017569,2]
[365383969,1749637982777,-239.11482798,0.00017569,2]
[365383970,1749637982806,-310.88517202,0.00017569,2]
[365383971,1749638003886,-198.12482798,0.00017569,2]
[365383972,1749638003915,-304.0,0.00017569,2]
[365383973,1749638003945,-47.87517202,0.00017569,2]
[365383974,1749638200840,254.0,0.0001589,2]
[365383976,1749638280818,600.02265251,0.00016,2]
[365383978,1749638426177,150.03,0.00013699,2]
[365383980,1749638560938,162.63,0.00014342,2]
[365383981,1749638663755,513.6252991,0.00024649,120]
[365383982,1749638828214,-500.0,0.00016164,2]
[365383983,1749638828237,-250.0,0.00016317,2]
[365383984,1749638828260,-1060.13,0.0001647,2]
[365383985,1749638828282,-151.0,0.00016765,2]
[365383986,1749638828306,-151.0,0.00016768,2]
[365383987,1749638828331,-204.0,0.00016969,2]
[365383988,1749638828353,-2500.0,0.00017469,2]
[365383989,1749638828375,-1110.0,0.00017499,2]
[365383990,1749638828398,-300.0,0.00017499,2]
[365383991,1749638828421,-509.37,0.000175,2]
[365383992,1749638828443,-20.85318774,0.000175,2]
[365383993,1749638849140,-469.23681226,0.000175,2]
[365383994,1749638849162,-305.75,0.000175,2]
[365383995,1749638849184,-491.39,0.000175,2]
[365383996,1749638849205,-215.75515665,0.000175,2]
[365383997,1749638853560,-494.47,0.000175,2]
[365383998,1749638853585,-85.62082218,0.000175,2]
[365384007,1749639032035,-210.68290712,0.000174,2]
[365384008,1749639032045,-44.86464275,0.000174,2]
[365384009,1749639032059,-455.09535725,0.000174,2]
[365384010,1749639032068,-490.32,0.000174,2]
[365384011,1749639032077,-499.91,0.000174,2]
[365384012,1749639032086,-503.37,0.000174,2]
[365384013,1749639032095,-300.57,0.000174,2]
[365384014,1749639032105,-304.42,0.000174,2]
[365384015,1749639032115,-300.07,0.000174,2]
[365384016,1749639032124,-501.95,0.000174,2]
[365384017,1749639032134,-491.93,0.000174,2]
[365384018,1749639032143,-491.37,0.000174,2]
[365384019,1749639032152,-498.08,0.000174,2]
[365384020,1749639032162,-490.56,0.000174,2]
[365384021,1749639032172,-303.22,0.00017401,2]
[365384022,1749639032182,-304.98,0.00017401,2]
[365384023,1749639032191,-509.57,0.00017402,2]
[365384024,1749639032200,-497.36,0.00017402,2]
[365384025,1749639032208,-494.55,0.00017402,2]
[365384026,1749639032218,-300.06,0.00017403,2]
[365384027,1749639032227,-503.02,0.0001741,2]
[365384028,1749639032236,-499.34,0.0001741,2]
[365384029,1749639032246,-499.31,0.0001741,2]
[365384030,1749639032256,-496.3,0.00017414,2]
[365384031,1749639032265,-496.61,0.00017414,2]
[365384032,1749639032275,-302.74,0.00017417,2]
[365384033,1749639032284,-305.72,0.00017423,2]
[365384034,1749639032293,-492.29,0.0001745,2]
[365384035,1749639032303,-501.37,0.0001745,2]
[365384036,1749639032313,-506.58,0.0001747,2]
[365384037,1749639032322,-503.71,0.0001747,2]
[365384039,1749639032331,-507.95,0.0001747,2]
[365384041,1749639032341,-502.9,0.0001747,2]
[365384043,1749639032350,-494.73,0.000175,2]
[365384044,1749639032359,-505.86,0.000175,2]
[365384045,1749639032368,-491.04,0.000175,2]
[365384046,1749639032379,-495.08,0.000175,2]
[365384047,1749639032389,-300.0,0.000175,2]
[365384048,1749639032399,-204.51402117,0.000175,2]
[365384049,1749639032408,-303.57,0.000175,2]
[365384050,1749639032417,-506.2,0.000175,2]
[365384051,1749639032427,-304.82,0.000175,2]
[365384052,1749639032436,-492.16,0.000175,2]
[365384053,1749639032445,-302.16,0.000175,2]
[365384054,1749639032454,-303.56,0.000175,2]
[365384055,1749639032464,-508.21,0.000175,2]
[365384056,1749639032473,-502.18,0.000175,2]
[365384057,1749639032483,-303.96,0.000175,2]
[365384058,1749639032492,-494.5,0.000175,2]
[365384059,1749639032504,-492.03,0.000175,2]
[365384060,1749639032518,-301.58,0.000175,2]
[365384061,1749639032527,-1054.8297421,0.00017522,2]
[365384062,1749639032536,-300.0,0.00017532,2]
[365384063,1749639032546,-496.94,0.00017568,2]
[365384064,1749639032555,-501.16,0.00017568,2]
[365384065,1749639032564,-303.07,0.00017568,2]
[365384066,1749639032574,-303.22,0.00017568,2]
[365384067,1749639032583,-497.69,0.00017569,2]
[365384068,1749639032592,-499.36,0.00017569,2]
[365384069,1749639032602,-493.11,0.00017569,2]
[365384070,1749639032611,-497.38,0.00017569,2]
[365384071,1749639032620,-151.0,0.00017569,2]
[365384072,1749639032629,-151.0,0.00017569,2]
[365384073,1749639032639,-502.04,0.00017569,2]
[365384074,1749639032648,-501.74,0.00017569,2]
[365384075,1749639032657,-600.0,0.00017569,4]
[365384076,1749639032666,-452.89482798,0.00017569,2]
[365384077,1749639032675,-497.64,0.00017569,2]
[365384078,1749639032686,-507.2,0.00017569,2]
[365384079,1749639032696,-300.54,0.00017569,2]
[365384080,1749639032705,-494.73,0.00017569,2]
[365384081,1749639032718,-500.58,0.00017569,2]
[365384082,1749639032727,-305.88,0.00017569,2]
[365384083,1749639032738,-493.88,0.00017569,2]
[365384084,1749639032747,-305.83,0.00017569,2]
[365384085,1749639032756,-439.17953856,0.00017569,2]
[365384086,1749639032843,-55.13046144,0.00017569,2]
[365384087,1749639032853,-494.91,0.00017569,2]
[365384088,1749639032862,-304.52,0.00017569,2]
[365384089,1749639032871,-495.77,0.00017569,2]
[365384090,1749639032880,-502.82,0.00017569,2]
[365384091,1749639032889,-501.83,0.00017569,2]
[365384092,1749639032898,-300.83,0.00017569,2]
[365384093,1749639032907,-499.86,0.00017569,2]
[365384094,1749639032916,-503.18,0.00017569,2]
[365384095,1749639032926,-250.0,0.0001778,2]
[365384096,1749639032935,-300.0,0.0001778,2]
[365384097,1749639032944,-791.15371386,0.00017828,2]
[365384098,1749639032956,-1708.84628614,0.00017828,2]
[365384099,1749639032966,-210.68290712,0.00017828,2]
[365384100,1749639032975,-292.35499727,0.00017927,2]
[365384101,1749639032985,-444.62081637,0.00017927,2]
[365384102,1749639032994,-208.81871087,0.00017927,2]
[365384103,1749639033005,-193.28304226,0.00017927,2]
[365384104,1749639033014,-2135.40056898,0.00017927,2]
[365384105,1749639033026,-516.288,0.00017927,2]
[365384122,1749639037854,-508.21,0.000174,2]
[365384124,1749639037863,-302.3,0.000174,2]
[365384125,1749639037872,-429.56,0.00017927,2]
[365384126,1749639037883,-554.96642892,0.00017927,2]
[365384127,1749639037893,-167.72057065,0.00017927,2]
[365384128,1749639037902,-151.0,0.00017927,2]
[365384129,1749639037911,-151.0,0.00017927,2]
[365384130,1749639037922,-185.19942925,0.00017928,2]
[365384131,1749639037959,-410.04661475,0.00017928,2]
[365384132,1749639037971,-1348.52228421,0.00017928,2]
[365384133,1749639038068,-67527.40167179,0.00017928,2]
[365384134,1749639038077,-1000.0,0.00017928,2]
[365384135,1749639038086,-3780.46,0.00017928,2]
[365384136,1749639038097,-1500.0,0.00017928,2]
[365384137,1749639038106,-150.0,0.00017928,7]
[365384138,1749639038115,-150.0,0.00017928,2]
[365384139,1749639038124,-1228.74,0.00017928,2]
[365384140,1749639038134,-226.7,0.00017928,2]
[365384141,1749639038143,-250.0,0.00017928,2]
[365384142,1749639038152,-2810.01,0.00017928,2]
[365384143,1749639038161,-1332.21,0.00017928,2]
[365384144,1749639038171,-1854.42,0.00017928,2]
[365384145,1749639038181,-666.0,0.00017928,2]
[365384146,1749639038191,-23900.0,0.00017928,2]
[365384147,1749639038200,-867.0,0.00017933,2]
[365384148,1749639038209,-204.0,0.00017994,3]
[365384149,1749639038219,-428.79897843,0.00018,2]
[365384150,1749639038228,-154.17,0.00018,2]
[365384151,1749639038237,-200.0,0.00018002,2]
[365384152,1749639038247,-1867.0,0.00018127,2]
[365384153,1749639038256,-6767.07,0.00018176,2]
[365384154,1749639038266,-549.0,0.00018217,2]
[365384155,1749639038276,-412.0,0.00018434,2]
[365384156,1749639038286,-170.49,0.00018476,2]
[365384157,1749639038297,-1060.13,0.00018734,2]
[365384158,1749639038306,-500.0,0.00018904,2]
[365384159,1749639038316,-151.0,0.00018999,2]
[365384160,1749639038326,-207.4,0.00018999,2]
[365384162,1749639038336,-250.0,0.00019,2]
[365384164,1749639038345,-204.0,0.00019018,4]
[365384166,1749639038354,-155.27536798,0.00019078,2]
[365384168,1749639038364,-3075.06089389,0.00019078,2]
[365384170,1749639038373,-300.0,0.00019103,2]
[365384172,1749639038382,-250.0,0.0001914,2]
[365384173,1749639038391,-300.0,0.0001914,2]
[365384175,1749639038401,-3075.06089387,0.00019169,2]
[365384177,1749639038410,-253.682,0.00019177,2]
[365384180,1749639038419,-2685.80307328,0.00019178,2]
[365384182,1749639038428,-2685.80307328,0.00019178,2]
[365384184,1749639038438,-2685.80307328,0.00019178,2]
[365384186,1749639038447,-2685.80307328,0.00019178,2]
[365384188,1749639038456,-2685.80307328,0.00019178,2]
[365384190,1749639038466,-2685.80307328,0.00019178,2]
[365384192,1749639038475,-2685.80307328,0.00019178,2]
[365384194,1749639038484,-500.0,0.00019178,2]
[365384196,1749639038493,-2685.80307328,0.00019178,2]
[365384198,1749639038502,-500.0,0.00019178,2]
[365384200,1749639038511,-2685.80307328,0.00019178,2]
[365384202,1749639038520,-500.0,0.00019178,2]
[365384204,1749639038529,-2685.80307328,0.00019178,2]
[365384206,1749639038538,-500.0,0.00019178,2]
[365384208,1749639038547,-2685.80307328,0.00019178,2]
[365384210,1749639038556,-2685.80307328,0.00019178,2]
[365384212,1749639038566,-585.2724749,0.00019178,2]
[365384214,1749639038575,-2685.80307328,0.00019178,2]
[365384216,1749639038583,-2685.80307328,0.00019178,2]
[365384218,1749639038592,-2685.80307328,0.00019178,2]
[365384220,1749639038601,-2685.80307328,0.00019178,2]
[365384222,1749639038610,-2685.80307328,0.00019178,2]
[365384224,1749639038619,-2685.80307328,0.00019178,2]
[365384226,1749639038628,-2685.80307328,0.00019178,2]
[365384228,1749639038637,-2685.80307328,0.00019178,2]
[365384230,1749639038646,-2685.80307328,0.00019178,2]
[365384232,1749639038656,-2685.80307328,0.00019178,2]
[365384234,1749639038665,-2685.80307328,0.00019178,2]
[365384236,1749639038673,-2685.80307328,0.00019178,2]
[365384238,1749639038684,-2685.80307328,0.00019178,2]
[365384239,1749639038694,-2685.80307328,0.00019178,2]
[365384242,1749639038704,-2685.80307328,0.00019178,2]
[365384244,1749639038713,-2685.80307328,0.00019178,2]
[365384246,1749639038722,-2685.80307328,0.00019178,2]
[365384248,1749639038733,-2685.80307328,0.00019178,2]
[365384250,1749639038742,-2685.80307328,0.00019178,2]
[365384252,1749639038751,-2685.80307328,0.00019178,2]
[365384254,1749639038762,-2685.80307328,0.00019178,2]
[365384256,1749639038771,-2685.80307328,0.00019178,2]
[365384258,1749639038780,-2685.80307328,0.00019178,2]
[365384260,1749639038789,-2685.80307328,0.00019178,2]
[365384261,1749639038798,-2685.80307328,0.00019178,2]
[365384263,1749639038807,-2685.80307328,0.00019178,2]
[365384265,1749639038816,-2685.80307328,0.00019178,2]
[365384267,1749639038825,-2685.80307328,0.00019178,2]
[365384269,1749639038834,-2685.80307328,0.00019178,2]
[365384271,1749639038843,-2685.80307328,0.00019178,2]
[365384273,1749639038853,-2685.80307328,0.00019178,2]
[365384275,1749639038862,-2685.80307328,0.00019178,2]
[365384277,1749639038871,-2685.80307328,0.00019178,2]
[365384279,1749639038881,-2685.80307328,0.00019178,2]
[365384281,1749639038890,-2685.80307328,0.00019178,2]
[365384283,1749639038900,-2685.80307328,0.00019178,2]
[365384285,1749639038909,-2685.80307328,0.00019178,2]
[365384287,1749639038918,-2685.80307328,0.00019178,2]
[365384290,1749639038928,-2685.80307328,0.00019178,2]
[365384291,1749639038937,-2685.80307328,0.00019178,2]
[365384294,1749639038946,-2685.80307328,0.00019178,2]
[365384295,1749639038955,-2685.80307328,0.00019178,2]
[365384297,1749639038964,-3287.31,0.00019178,2]
[365384298,1749639038974,-204.68,0.00019178,2]
[365384299,1749639038983,-5108.11286532,0.00019183,2]
[365384300,1749639038992,-250.0,0.0001925,2]
[365384301,1749639039001,-300.0,0.0001925,2]
[365384302,1749639039010,-3075.06089387,0.00019261,2]
[365384303,1749639039018,-155.27536798,0.00019284,2]
[365384304,1749639039027,-213.69,0.00019297,2]
[365384305,1749639039036,-600.0,0.00019326,4]
[365384306,1749639039045,-3075.06089387,0.00019352,2]
[365384307,1749639039055,-168.0,0.00019394,2]
[365384308,1749639039070,-3075.06089387,0.00019443,2]
[365384309,1749639039080,-155.27536798,0.00019489,2]
[365384311,1749639039089,-3075.06089387,0.00019535,2]
[365384313,1749639039098,-412.0,0.00019567,2]
[365384315,1749639039108,-412.0,0.00019583,2]